fUST/lending_fUST_20240617
["ID","MTS","AMOUNT","RATE_DAILY","PERIOD"]
[329686558,1718574650522,-500.0,0.00014077,2]
[329686559,1718574650536,-2112.2,0.00014077,2]
[329686560,1718574650556,-555.05295611,0.00014077,2]
[329686561,1718574650568,-500.0,0.00014077,2]
[329686562,1718574650579,-620.68,0.00014077,2]
[329686563,1718574650591,-656.48,0.00014077,2]
[329686564,1718574650603,-500.0,0.00014077,2]
[329686565,1718574650615,-5083.07,0.00014077,2]
[329686566,1718574650640,-500.0,0.00014077,2]
[329686567,1718574650656,-703.93,0.00014077,2]
[329686568,1718574650672,-500.0,0.00014077,2]
[329686569,1718574650683,-500.0,0.00014077,2]
[329686570,1718574650698,-500.0,0.00014077,2]
[329686571,1718574650709,-500.0,0.00014077,2]
[329686572,1718574650723,-500.0,0.00014077,2]
[329686575,1718574650741,-500.0,0.00014077,2]
[329686576,1718574650768,-13603.47,0.00014077,2]
[329686578,1718574650780,-6956.27,0.00014077,2]
[329686580,1718574650800,-500.0,0.00014077,2]
[329686582,1718574650838,-326.91482797,0.00014077,2]
[329686583,1718574650854,-674.44,0.00014077,2]
[329686585,1718574650868,-488.08,0.00014077,2]
[329686587,1718574650889,-500.0,0.00014077,2]
[329686589,1718574650906,-44641.88886747,0.00014078,2]
[329686590,1718574650918,-11104.70353235,0.00014079,2]
[329686592,1718574650936,-11684.92275355,0.00014079,2]
[329686593,1718574650952,-155.16009096,0.00014079,2]
[329686594,1718574650977,-500.0,0.00014079,2]
[329686595,1718574650990,-500.0,0.0001408,2]
[329686596,1718574651018,-500.0,0.0001408,2]
[329686597,1718574651032,-615.79,0.0001408,2]
[329686598,1718574651049,-500.0,0.0001408,2]
[329686599,1718574651065,-500.0,0.0001408,2]
[329686600,1718574651077,-7683.29,0.0001408,2]
[329686601,1718574651091,-500.0,0.0001408,2]
[329686602,1718574651112,-500.0,0.0001408,2]
[329686603,1718574651130,-500.0,0.00014081,2]
[329686604,1718574651160,-500.0,0.00014081,2]
[329686605,1718574651186,-566.86197237,0.00014081,2]
[329686606,1718574651197,-500.0,0.00014081,2]
[329686607,1718574651228,-500.0,0.00014081,2]
[329686608,1718574651256,-250.0,0.00014081,2]
[329686609,1718574651270,-500.0,0.00014081,2]
[329686610,1718574651293,-500.0,0.00014081,2]
[329686611,1718574651319,-500.0,0.00014081,2]
[329686612,1718574651331,-617.51,0.00014081,2]
[329686613,1718574651345,-351.83,0.00014081,2]
[329686614,1718574651388,-500.0,0.00014351,2]
[329686615,1718574651409,-500.0,0.00014351,2]
[329686616,1718574651422,-722.86,0.00014351,2]
[329686617,1718574651449,-500.0,0.00014351,2]
[329686618,1718574651461,-231.26,0.00014351,2]
[329686619,1718574651476,-1270.13,0.00014351,2]
[329686620,1718574651488,-2557.63,0.00014351,2]
[329686621,1718574651503,-332.11601221,0.00014351,2]
[329686622,1718574651521,-655.07,0.00014351,2]
[329686623,1718574651549,-500.0,0.00014351,2]
[329686624,1718574651560,-259.36,0.00014351,2]
[329686625,1718574651571,-500.0,0.00014351,2]
[329686626,1718574651585,-892.93,0.00014351,2]
[329686627,1718574651601,-500.0,0.00014351,2]
[329686628,1718574651615,-500.0,0.00014351,2]
[329686629,1718574651633,-500.0,0.00014351,2]
[329686630,1718574651648,-752.79,0.00014351,2]
[329686631,1718574651674,-500.0,0.00014351,2]
[329686632,1718574651693,-624.56,0.00014351,2]
[329686633,1718574651708,-500.0,0.00014351,2]
[329686634,1718574651768,-500.0,0.00014351,2]
[329686635,1718574651799,-1088.47,0.00014351,2]
[329686636,1718574651817,-678.17,0.00014351,2]
[329686637,1718574651829,-231.76,0.00014351,2]
[329686638,1718574651840,-500.0,0.00014351,2]
[329686639,1718574651852,-2439.91,0.00014351,2]
[329686640,1718574651882,-500.0,0.00014351,2]
[329686641,1718574651907,-500.0,0.00014351,2]
[329686642,1718574651924,-598.78,0.00014351,2]
[329686643,1718574651949,-500.0,0.00014351,2]
[329686644,1718574651960,-2112.2,0.00014351,2]
[329686645,1718574651972,-500.76,0.00014351,2]
[329686646,1718574651998,-620.68,0.00014351,2]
[329686647,1718574652010,-656.48,0.00014351,2]
[329686648,1718574652023,-500.0,0.00014351,2]
[329686649,1718574652035,-5083.07,0.00014351,2]
[329686650,1718574652059,-500.0,0.00014351,2]
[329686651,1718574652077,-703.93,0.00014351,2]
[329686652,1718574652092,-461.58057933,0.00014351,2]
[329686653,1718574652104,-500.0,0.00014351,2]
[329686654,1718574652116,-500.0,0.00014351,2]
[329686655,1718574652128,-500.0,0.00014351,2]
[329686656,1718574652139,-500.0,0.00014351,2]
[329686657,1718574652155,-500.0,0.00014351,2]
[329686658,1718574652168,-13603.47,0.00014351,2]
[329686659,1718574652189,-6956.27,0.00014351,2]
[329686660,1718574652201,-312.46,0.00014351,2]
[329686661,1718574652215,-674.44,0.00014351,2]
[329686662,1718574652225,-359.67827582,0.00014351,2]
[329686663,1718574652238,-500.0,0.00014353,2]
[329686664,1718574652252,-208.13,0.00014354,2]
[329686665,1718574652262,-615.79,0.00014354,2]
[329686666,1718574652275,-500.0,0.00014354,2]
[329686667,1718574652292,-500.0,0.00014354,2]
[329686668,1718574652304,-7683.29,0.00014354,2]
[329686669,1718574652317,-500.0,0.00014354,2]
[329686670,1718574652328,-500.0,0.00014355,2]
[329686671,1718574652342,-500.0,0.00014355,2]
[329686672,1718574652369,-500.0,0.00014355,2]
[329686673,1718574652380,-617.51,0.00014355,2]
[329686674,1718574652393,-500.0,0.00014625,2]
[329686675,1718574652403,-500.0,0.00014625,2]
[329686676,1718574652415,-722.86,0.00014625,2]
[329686677,1718574652425,-500.0,0.00014625,2]
[329686678,1718574652435,-1270.13,0.00014625,2]
[329686679,1718574652445,-2557.63,0.00014625,2]
[329686680,1718574652455,-655.07,0.00014625,2]
[329686681,1718574652465,-500.0,0.00014625,2]
[329686682,1718574652475,-500.0,0.00014625,2]
[329686683,1718574652486,-892.93,0.00014625,2]
[329686684,1718574652498,-500.0,0.00014625,2]
[329686685,1718574652509,-500.0,0.00014625,2]
[329686686,1718574652521,-500.0,0.00014625,2]
[329686687,1718574652532,-752.79,0.00014625,2]
[329686688,1718574652546,-500.0,0.00014625,2]
[329686689,1718574652557,-624.56,0.00014625,2]
[329686690,1718574652573,-500.0,0.00014625,2]
[329686691,1718574652583,-500.0,0.00014625,2]
[329686692,1718574652597,-1088.47,0.00014625,2]
[329686693,1718574652608,-678.17,0.00014625,2]
[329686694,1718574652619,-515.42,0.00014625,2]
[329686695,1718574652629,-2439.91,0.00014625,2]
[329686696,1718574652639,-500.0,0.00014625,2]
[329686697,1718574652649,-598.78,0.00014625,2]
[329686698,1718574652661,-500.0,0.00014625,2]
[329686699,1718574652672,-2112.2,0.00014625,2]
[329686700,1718574652685,-620.68,0.00014625,2]
[329686701,1718574652704,-656.48,0.00014625,2]
[329686702,1718574652724,-500.0,0.00014625,2]
[329686703,1718574652736,-5083.07,0.00014625,2]
[329686704,1718574652751,-500.0,0.00014625,2]
[329686705,1718574652780,-703.93,0.00014625,2]
[329686706,1718574652790,-500.0,0.00014625,2]
[329686707,1718574652800,-500.0,0.00014625,2]
[329686708,1718574652826,-500.0,0.00014625,2]
[329686709,1718574652844,-500.0,0.00014625,2]
[329686710,1718574652866,-500.0,0.00014625,2]
[329686711,1718574652877,-13603.47,0.00014625,2]
[329686712,1718574652890,-6956.27,0.00014625,2]
[329686713,1718574652902,-674.44,0.00014625,2]
[329686714,1718574652929,-234.36872739,0.00014627,2]
[329686715,1718574652940,-615.79,0.00014628,2]
[329686716,1718574652958,-500.0,0.00014628,2]
[329686717,1718574652977,-500.0,0.00014628,2]
[329686718,1718574652990,-7683.29,0.00014628,2]
[329686719,1718574653002,-500.0,0.00014628,2]
[329686720,1718574653024,-500.0,0.00014629,2]
[329686721,1718574653035,-500.0,0.00014629,2]
[329686722,1718574653068,-396.74,0.00014629,2]
[329686723,1718574653092,-617.51,0.00014629,2]
[329686724,1718574653103,-151.0,0.00014629,2]
[329686725,1718574653115,-151.0,0.00014629,2]
[329686726,1718574653135,-151.0,0.00014629,2]
[329686727,1718574653146,-151.0,0.00014629,2]
[329686728,1718574653158,-151.0,0.00014629,2]
[329686729,1718574653170,-500.0,0.00014899,2]
[329686730,1718574653181,-151.0,0.00014899,2]
[329686731,1718574653192,-151.0,0.00014899,2]
[329686732,1718574653206,-151.0,0.00014899,2]
[329686733,1718574653217,-500.0,0.00014899,2]
[329686734,1718574653233,-722.86,0.00014899,2]
[329686735,1718574653244,-500.0,0.00014899,2]
[329686736,1718574653254,-1270.13,0.00014899,2]
[329686737,1718574653271,-2557.63,0.00014899,2]
[329686738,1718574653288,-151.0,0.00014899,2]
[329686739,1718574653300,-655.07,0.00014899,2]
[329686740,1718574653313,-151.0,0.00014899,2]
[329686741,1718574653353,-500.0,0.00014899,2]
[329686742,1718574653411,-151.0,0.00014899,2]
[329686743,1718574653451,-500.0,0.00014899,2]
[329686744,1718574653462,-892.93,0.00014899,2]
[329686745,1718574653474,-500.0,0.00014899,2]
[329686746,1718574653486,-500.0,0.00014899,2]
[329686747,1718574653500,-500.0,0.00014899,2]
[329686748,1718574653515,-752.79,0.00014899,2]
[329686749,1718574653537,-500.0,0.00014899,2]
[329686750,1718574653553,-624.56,0.00014899,2]
[329686751,1718574653588,-500.0,0.00014899,2]
[329686752,1718574653632,-500.0,0.00014899,2]
[329686753,1718574653643,-1088.47,0.00014899,2]
[329686754,1718574653657,-678.17,0.00014899,2]
[329686755,1718574653674,-2439.91,0.00014899,2]
[329686756,1718574653684,-500.0,0.00014899,2]
[329686757,1718574653696,-598.78,0.00014899,2]
[329686758,1718574653725,-500.0,0.00014899,2]
[329686759,1718574653737,-2112.2,0.00014899,2]
[329686760,1718574653749,-620.68,0.00014899,2]
[329686761,1718574653763,-656.48,0.00014899,2]
[329686762,1718574653785,-500.0,0.00014899,2]
[329686763,1718574653825,-5083.07,0.00014899,2]
[329686764,1718574653845,-609.02,0.00014899,2]
[329686765,1718574653857,-703.93,0.00014899,2]
[329686766,1718574653867,-500.0,0.00014899,2]
[329686767,1718574653878,-500.0,0.00014899,2]
[329686768,1718574653889,-500.0,0.00014899,2]
[329686769,1718574653899,-519.12,0.00014899,2]
[329686770,1718574653917,-500.0,0.00014899,2]
[329686771,1718574653948,-13603.47,0.00014899,2]
[329686772,1718574653965,-6956.27,0.00014899,2]
[329686773,1718574653976,-674.44,0.00014899,2]
[329686774,1718574654014,-151.0,0.00014902,2]
[329686775,1718574654037,-151.0,0.00014902,2]
[329686776,1718574654052,-217.539594,0.00014902,2]
[329686777,1718574654072,-151.0,0.00014902,2]
[329686778,1718574654096,-151.0,0.00014902,2]
[329686779,1718574654116,-151.0,0.00014902,2]
[329686780,1718574654134,-151.0,0.00014902,2]
[329686781,1718574654160,-615.79,0.00014902,2]
[329686782,1718574654210,-151.0,0.00014902,2]
[329686783,1718574654221,-157.939075,0.00014902,2]
[329686784,1718574654232,-151.0,0.00014902,2]
[329686785,1718574654250,-151.0,0.00014902,2]
[329686786,1718574654261,-500.0,0.00014902,2]
[329686787,1718574654271,-151.0,0.00014902,2]
[329686788,1718574654301,-500.0,0.00014902,2]
[329686789,1718574654328,-154.510803,0.00014902,2]
[329686790,1718574654342,-154.510803,0.00014902,2]
[329686791,1718574654356,-151.0,0.00014902,2]
[329686792,1718574654371,-151.0,0.00014902,2]
[329686793,1718574654386,-151.0,0.00014902,2]
[329686794,1718574654399,-220.839856,0.00014902,2]
[329686795,1718574654423,-220.839856,0.00014902,2]
[329686796,1718574654434,-7683.29,0.00014902,2]
[329686797,1718574654482,-500.0,0.00014902,2]
[329686799,1718574654509,-151.0,0.00014902,2]
[329686801,1718574654521,-151.0,0.00014902,2]
[329686804,1718574654544,-151.0,0.00014902,2]
[329686806,1718574654558,-151.0,0.00014902,2]
[329686807,1718574654569,-258.560744,0.00014902,2]
[329686808,1718574654595,-258.560744,0.00014902,2]
[329686809,1718574654620,-151.0,0.00014902,2]
[329686810,1718574654632,-500.0,0.00014903,2]
[329686811,1718574654660,-500.0,0.00014903,2]
[329686812,1718574654688,-617.51,0.00014903,2]
[329686813,1718574654819,-151.0,0.00014903,2]
[329686814,1718574654850,-151.0,0.00014903,2]
[329686815,1718574654863,-151.0,0.00014903,2]
[329686816,1718574654874,-500.0,0.00015173,2]
[329686817,1718574654885,-500.0,0.00015173,2]
[329686818,1718574654910,-722.86,0.00015173,2]
[329686819,1718574654932,-500.0,0.00015173,2]
[329686820,1718574654943,-1270.13,0.00015173,2]
[329686821,1718574654955,-2557.63,0.00015173,2]
[329686823,1718574654999,-655.07,0.00015173,2]
[329686824,1718574655028,-500.0,0.00015173,2]
[329686825,1718574655040,-307.41217758,0.00015173,2]
[329686826,1718574655080,-892.93,0.00015173,2]
[329686827,1718574655100,-500.0,0.00015173,2]
[329686828,1718574655112,-500.0,0.00015173,2]
[329686829,1718574655124,-500.0,0.00015173,2]
[329686830,1718574655136,-752.79,0.00015173,2]
[329686831,1718574655149,-500.0,0.00015173,2]
[329686832,1718574655161,-624.56,0.00015173,2]
[329686833,1718574655173,-500.0,0.00015173,2]
[329686834,1718574655187,-500.0,0.00015173,2]
[329686835,1718574655205,-1088.47,0.00015173,2]
[329686836,1718574655217,-678.17,0.00015173,2]
[329686837,1718574655228,-2439.91,0.00015173,2]
[329686838,1718574655239,-500.0,0.00015173,2]
[329686839,1718574655251,-598.78,0.00015173,2]
[329686840,1718574655274,-500.0,0.00015173,2]
[329686841,1718574655292,-2112.2,0.00015173,2]
[329686842,1718574655307,-620.68,0.00015173,2]
[329686843,1718574655318,-656.48,0.00015173,2]
[329686844,1718574655333,-500.0,0.00015173,2]
[329686845,1718574655355,-5083.07,0.00015173,2]
[329686846,1718574655370,-703.93,0.00015173,2]
[329686847,1718574655385,-500.0,0.00015173,2]
[329686848,1718574655396,-500.0,0.00015173,2]
[329686849,1718574655413,-500.0,0.00015173,2]
[329686850,1718574655426,-500.0,0.00015173,2]
[329686851,1718574655441,-13603.47,0.00015173,2]
[329686852,1718574655455,-6956.27,0.00015173,2]
[329686853,1718574655467,-674.44,0.00015173,2]
[329686854,1718574655481,-151.0,0.00015176,2]
[329686855,1718574655494,-151.0,0.00015176,2]
[329686856,1718574655508,-151.0,0.00015176,2]
[329686857,1718574655524,-151.0,0.00015176,2]
[329686858,1718574655536,-151.0,0.00015176,2]
[329686859,1718574655550,-615.79,0.00015176,2]
[329686860,1718574655568,-151.0,0.00015176,2]
[329686861,1718574655580,-151.0,0.00015176,2]
[329686862,1718574655591,-151.0,0.00015176,2]
[329686863,1718574655603,-191.77,0.00015176,2]
[329686864,1718574655617,-231.66,0.00015176,2]
[329686865,1718574655631,-151.0,0.00015176,2]
[329686866,1718574655651,-151.0,0.00015176,2]
[329686867,1718574655662,-154.510803,0.00015176,2]
[329686868,1718574655678,-154.510803,0.00015176,2]
[329686869,1718574655690,-151.0,0.00015176,2]
[329686870,1718574655705,-151.0,0.00015176,2]
[329686871,1718574655721,-151.0,0.00015176,2]
[329686872,1718574655741,-220.839856,0.00015176,2]
[329686873,1718574655751,-220.839856,0.00015176,2]
[329686874,1718574655767,-7683.29,0.00015176,2]
[329686875,1718574655800,-408.7,0.00015176,2]
[329686876,1718574655824,-151.0,0.00015176,2]
[329686877,1718574655848,-151.0,0.00015176,2]
[329686878,1718574655872,-151.0,0.00015176,2]
[329686879,1718574655883,-258.560744,0.00015176,2]
[329686880,1718574655895,-258.560744,0.00015176,2]
[329686881,1718574655906,-151.0,0.00015176,2]
[329686882,1718574655917,-500.0,0.00015177,2]
[329686883,1718574655931,-500.0,0.00015177,2]
[329686884,1718574655958,-617.51,0.00015177,2]
[329686885,1718574655982,-500.0,0.00015262,2]
[329686886,1718574656001,-1750.0,0.00015262,2]
[329686887,1718574656013,-600.0,0.0001538,2]
[329686888,1718574656024,-387.650387,0.00015397,2]
[329686889,1718574656060,-500.0,0.00015447,2]
[329686890,1718574656071,-500.0,0.00015447,2]
[329686891,1718574656104,-722.86,0.00015447,2]
[329686892,1718574656115,-500.0,0.00015447,2]
[329686893,1718574656139,-1270.13,0.00015447,2]
[329686894,1718574656172,-2557.63,0.00015447,2]
[329686895,1718574656184,-655.07,0.00015447,2]
[329686896,1718574656200,-500.0,0.00015447,2]
[329686897,1718574656237,-892.93,0.00015447,2]
[329686898,1718574656264,-500.0,0.00015447,2]
[329686899,1718574656275,-500.0,0.00015447,2]
[329686900,1718574656288,-500.0,0.00015447,2]
[329686901,1718574656301,-151.0,0.00015447,2]
[329686902,1718574656328,-752.79,0.00015447,2]
[329686903,1718574656352,-151.0,0.00015447,2]
[329686904,1718574656373,-318.83320295,0.00015447,2]
[329686905,1718574656393,-624.56,0.00015447,2]
[329686906,1718574656418,-220.839856,0.00015447,2]
[329686907,1718574656428,-220.839856,0.00015447,2]
[329686908,1718574656448,-500.0,0.00015447,2]
[329686909,1718574656459,-500.0,0.00015447,2]
[329686910,1718574656471,-1088.47,0.00015447,2]
[329686911,1718574656482,-678.17,0.00015447,2]
[329686912,1718574656496,-151.0,0.00015447,2]
[329686913,1718574656510,-2439.91,0.00015447,2]
[329686914,1718574656525,-500.0,0.00015447,2]
[329686915,1718574656540,-151.0,0.00015447,2]
[329686916,1718574656557,-151.0,0.00015447,2]
[329686917,1718574656569,-598.78,0.00015447,2]
[329686918,1718574656581,-500.0,0.00015447,2]
[329686919,1718574656597,-2112.2,0.00015447,2]
[329686920,1718574656610,-620.68,0.00015447,2]
[329686921,1718574656624,-656.48,0.00015447,2]
[329686922,1718574656650,-500.0,0.00015447,2]
[329686923,1718574656662,-5083.07,0.00015447,2]
[329686924,1718574656674,-703.93,0.00015447,2]
[329686925,1718574656687,-500.0,0.00015447,2]
[329686926,1718574656700,-500.0,0.00015447,2]
[329686927,1718574656712,-500.0,0.00015447,2]
[329686928,1718574656723,-500.0,0.00015447,2]
[329686929,1718574656734,-13603.47,0.00015447,2]
[329686930,1718574656744,-6956.27,0.00015447,2]
[329686931,1718574656757,-674.44,0.00015447,2]
[329686932,1718574656781,-151.0,0.0001545,2]
[329686933,1718574656800,-151.0,0.0001545,2]
[329686934,1718574656813,-151.0,0.0001545,2]
[329686935,1718574656835,-151.0,0.0001545,2]
[329686936,1718574656846,-615.79,0.0001545,2]
[329686937,1718574656864,-151.0,0.0001545,2]
[329686938,1718574656877,-260.394515,0.0001545,2]
[329686939,1718574656887,-156.284908,0.0001545,2]
[329686940,1718574656898,-151.0,0.0001545,2]
[329686941,1718574656920,-151.0,0.0001545,2]
[329686942,1718574656931,-154.510803,0.0001545,2]
[329686943,1718574656949,-154.510803,0.0001545,2]
[329686944,1718574656963,-151.0,0.0001545,2]
[329686945,1718574656975,-7683.29,0.0001545,2]
[329686946,1718574656985,-258.560744,0.0001545,2]
[329686947,1718574656998,-258.560744,0.0001545,2]
[329686948,1718574657009,-151.0,0.0001545,2]
[329686949,1718574657033,-500.0,0.00015451,2]
[329686950,1718574657057,-220.82069625,0.00015451,2]
[329686951,1718574657068,-617.51,0.00015451,2]
[329686952,1718574657079,-420.0,0.00015484,2]
[329686953,1718574657091,-600.0,0.0001554,2]
[329686954,1718574657101,-154.29731235,0.00015569,3]
[329686955,1718574657113,-600.0,0.00015701,2]
[329686956,1718574657127,-500.0,0.00015721,2]
[329686957,1718574657166,-500.0,0.00015721,2]
[329686958,1718574657185,-722.86,0.00015721,2]
[329686959,1718574657197,-500.0,0.00015721,2]
[329686960,1718574657207,-1270.13,0.00015721,2]
[329686961,1718574657224,-2557.63,0.00015721,2]
[329686962,1718574657236,-655.07,0.00015721,2]
[329686963,1718574657249,-500.0,0.00015721,2]
[329686964,1718574657261,-892.93,0.00015721,2]
[329686965,1718574657274,-500.0,0.00015721,2]
[329686966,1718574657288,-500.0,0.00015721,2]
[329686967,1718574657327,-500.0,0.00015721,2]
[329686968,1718574657348,-151.0,0.00015721,2]
[329686969,1718574657372,-752.79,0.00015721,2]
[329686970,1718574657417,-151.0,0.00015721,2]
[329686971,1718574657428,-624.56,0.00015721,2]
[329686972,1718574657439,-220.839856,0.00015721,2]
[329686973,1718574657454,-220.839856,0.00015721,2]
[329686974,1718574657471,-500.0,0.00015721,2]
[329686975,1718574657482,-442.99688106,0.00015721,2]
[329686976,1718574657493,-1088.47,0.00015721,2]
[329686977,1718574657504,-678.17,0.00015721,2]
[329686978,1718574657517,-151.0,0.00015721,2]
[329686979,1718574657529,-2439.91,0.00015721,2]
[329686980,1718574657544,-500.0,0.00015721,2]
[329686981,1718574657556,-151.0,0.00015721,2]
[329686982,1718574657567,-598.78,0.00015721,2]
[329686983,1718574657581,-500.0,0.00015721,2]
[329686984,1718574657592,-2112.2,0.00015721,2]
[329686985,1718574657607,-620.68,0.00015721,2]
[329686986,1718574657618,-656.48,0.00015721,2]
[329686987,1718574657629,-500.0,0.00015721,2]
[329686988,1718574657639,-5083.07,0.00015721,2]
[329686989,1718574657651,-703.93,0.00015721,2]
[329686990,1718574657662,-500.0,0.00015721,2]
[329686991,1718574657672,-500.0,0.00015721,2]
[329686992,1718574657682,-500.0,0.00015721,2]
[329686993,1718574657694,-151.0,0.00015721,2]
[329686994,1718574657708,-500.0,0.00015721,2]
[329686995,1718574657722,-13603.47,0.00015721,2]
[329686996,1718574657734,-6956.27,0.00015721,2]
[329686997,1718574657745,-674.44,0.00015721,2]
[329686998,1718574657766,-151.0,0.00015724,2]
[329686999,1718574657784,-151.0,0.00015724,2]
[329687000,1718574657796,-151.0,0.00015724,2]
[329687001,1718574657808,-151.0,0.00015724,2]
[329687002,1718574657819,-615.79,0.00015724,2]
[329687003,1718574657832,-151.0,0.00015724,2]
[329687004,1718574657853,-151.0,0.00015724,2]
[329687005,1718574657877,-151.0,0.00015724,2]
[329687006,1718574657889,-154.510803,0.00015724,2]
[329687007,1718574657909,-154.510803,0.00015724,2]
[329687008,1718574657922,-7683.29,0.00015724,2]
[329687009,1718574657942,-258.560744,0.00015724,2]
[329687010,1718574657969,-258.560744,0.00015724,2]
[329687011,1718574658016,-550.52188089,0.00015725,2]
[329687012,1718574658040,-500.0,0.00015725,2]
[329687013,1718574658052,-617.51,0.00015725,2]
[329687014,1718574658064,-1505.463438,0.00015736,2]
[329687015,1718574658076,-1264.56282,0.00015736,2]
[329687016,1718574658089,-600.0,0.00015861,2]
[329687017,1718574658100,-1505.463438,0.0001593,2]
[329687018,1718574658139,-1264.56282,0.0001593,2]
[329687019,1718574658161,-609.69798972,0.00015977,2]
[329687020,1718574658177,-500.0,0.00015995,2]
[329687021,1718574658190,-500.0,0.00015995,2]
[329687022,1718574658205,-722.86,0.00015995,2]
[329687023,1718574658221,-500.0,0.00015995,2]
[329687024,1718574658244,-1270.13,0.00015995,2]
[329687025,1718574658256,-2557.63,0.00015995,2]
[329687026,1718574658278,-655.07,0.00015995,2]
[329687027,1718574658289,-500.0,0.00015995,2]
[329687028,1718574658300,-892.93,0.00015995,2]
[329687029,1718574658311,-500.0,0.00015995,2]
[329687030,1718574658343,-500.0,0.00015995,2]
[329687031,1718574658388,-500.0,0.00015995,2]
[329687032,1718574658404,-752.79,0.00015995,2]
[329687033,1718574658456,-151.0,0.00015995,2]
[329687034,1718574658492,-624.56,0.00015995,2]
[329687035,1718574658503,-220.839856,0.00015995,2]
[329687036,1718574658514,-220.839856,0.00015995,2]
[329687037,1718574658540,-1088.47,0.00015995,2]
[329687038,1718574658552,-678.17,0.00015995,2]
[329687039,1718574658564,-151.0,0.00015995,2]
[329687040,1718574658574,-2439.91,0.00015995,2]
[329687041,1718574658585,-151.0,0.00015995,2]
[329687042,1718574658595,-598.78,0.00015995,2]
[329687043,1718574658614,-500.0,0.00015995,2]
[329687044,1718574658625,-2112.2,0.00015995,2]
[329687045,1718574658636,-620.68,0.00015995,2]
[329687046,1718574658646,-258.560744,0.00015995,2]
[329687047,1718574658658,-258.560744,0.00015995,2]
[329687048,1718574658677,-656.48,0.00015995,2]
[329687049,1718574658687,-500.0,0.00015995,2]
[329687050,1718574658697,-5083.07,0.00015995,2]
[329687051,1718574658707,-703.93,0.00015995,2]
[329687052,1718574658716,-500.0,0.00015995,2]
[329687053,1718574658728,-500.0,0.00015995,2]
[329687054,1718574658739,-500.0,0.00015995,2]
[329687055,1718574658751,-151.0,0.00015995,2]
[329687056,1718574658762,-500.0,0.00015995,2]
[329687058,1718574658775,-13603.47,0.00015995,2]
[329687059,1718574658785,-6956.27,0.00015995,2]
[329687060,1718574658805,-674.44,0.00015995,2]
[329687061,1718574658815,-151.0,0.00015998,2]
[329687062,1718574658829,-151.0,0.00015998,2]
[329687063,1718574658840,-151.0,0.00015998,2]
[329687064,1718574658857,-151.0,0.00015998,2]
[329687065,1718574658869,-615.79,0.00015998,2]
[329687066,1718574658883,-151.0,0.00015998,2]
[329687067,1718574658894,-151.0,0.00015998,2]
[329687068,1718574658912,-151.0,0.00015998,2]
[329687069,1718574658923,-154.510803,0.00015998,2]
[329687070,1718574658940,-154.510803,0.00015998,2]
[329687071,1718574658953,-7683.29,0.00015998,2]
[329687072,1718574658963,-500.0,0.00015999,2]
[329687073,1718574658974,-617.51,0.00015999,2]